fUSD/lending_fUSD_20251221
["ID","MTS","AMOUNT","RATE_DAILY","PERIOD"]
[399404138,1766327621487,-500.0,0.00041095,120]
[399404139,1766327621565,-500.0,0.00041095,120]
[399404140,1766327621642,-500.0,0.00041095,120]
[399404141,1766327621720,-500.0,0.00041095,120]
[399404142,1766327621798,-500.0,0.00041095,120]
[399404143,1766327621876,-500.0,0.00041095,120]
[399404144,1766327621956,-500.0,0.00041095,120]
[399404145,1766327622038,-500.0,0.00041095,120]
[399404146,1766327622118,-500.0,0.00041095,120]
[399404147,1766327622198,-500.0,0.00041095,120]
[399404148,1766327622280,-500.0,0.00041095,120]
[399404149,1766327622363,-454.99622493,0.00041095,120]
[399404150,1766327622445,-500.0,0.00041095,120]
[399404151,1766327622524,-502.93559283,0.00041095,120]
[399404152,1766327622604,-500.0,0.00041095,120]
[399404153,1766327622686,-500.0,0.00041095,120]
[399404154,1766327622769,-500.0,0.00041095,120]
[399404155,1766327622852,-500.0,0.00041095,120]
[399404156,1766327622933,-500.0,0.00041095,120]
[399404157,1766327623015,-500.0,0.00041095,120]
[399404158,1766327623098,-151.27689652,0.00041095,120]
[399404159,1766327623184,-500.0,0.00041095,120]
[399404160,1766327623271,-500.0,0.00041095,120]
[399404161,1766327623354,-500.0,0.00041095,120]
[399404162,1766327623441,-500.0,0.00041095,120]
[399404163,1766327623523,-500.0,0.00041095,120]
[399404164,1766327623614,-500.0,0.00041095,120]
[399404165,1766327623709,-500.0,0.00041095,120]
[399404166,1766327623804,-500.0,0.00041095,120]
[399404167,1766327623890,-500.0,0.00041095,120]
[399404168,1766327623976,-500.0,0.00041095,120]
[399404169,1766327624068,-500.0,0.00041095,120]
[399404170,1766327624163,-500.0,0.00041095,120]
[399404171,1766327624254,-500.0,0.00041095,120]
[399404172,1766327624345,-500.0,0.00041095,120]
[399404173,1766327624436,-406.61274686,0.00041095,120]
[399404174,1766327624524,-305.9,0.00041095,120]
[399404175,1766327624612,-500.0,0.00041095,120]
[399404176,1766327624703,-500.0,0.00041095,120]
[399404177,1766327624791,-500.0,0.00041095,120]
[399404178,1766327624882,-500.0,0.00041095,120]
[399404179,1766327624970,-500.0,0.00041095,120]
[399404180,1766327625063,-500.0,0.00041095,120]
[399404181,1766327625153,-512.83646355,0.00041095,120]
[399404182,1766327625242,-500.0,0.00041095,120]
[399404183,1766327625331,-500.0,0.00041095,120]
[399404184,1766327625423,-500.0,0.00041095,120]
[399404185,1766327625510,-182.09831882,0.00041095,120]
[399404186,1766327625596,-500.0,0.00041095,120]
[399404187,1766327625681,-492.26762025,0.00041095,120]
[399404188,1766327625766,-500.0,0.00041095,120]
[399404189,1766327625851,-500.0,0.00041095,120]
[399404191,1766327625938,-413.33609274,0.00041095,120]
[399404192,1766327626027,-500.0,0.00041095,120]
[399404193,1766327626117,-500.0,0.00041095,120]
[399404194,1766327626214,-500.0,0.00041095,120]
[399404195,1766327626309,-500.0,0.00041095,120]
[399404196,1766327626402,-500.0,0.00041095,120]
[399404197,1766327626492,-500.0,0.00041095,120]
[399404198,1766327626581,-500.0,0.00041095,120]
[399404199,1766327626665,-500.0,0.00041095,120]
[399404200,1766327626750,-500.0,0.00041095,120]
[399404201,1766327626837,-500.0,0.00041095,120]
[399404202,1766327626928,-500.0,0.00041095,120]
[399404203,1766327627020,-500.0,0.00041095,120]
[399404204,1766327627109,-500.0,0.00041095,120]
[399404205,1766327627198,-500.0,0.00041095,120]
[399404206,1766327627288,-507.26637269,0.00041095,120]
[399404207,1766327627377,-500.0,0.00041095,120]
[399404208,1766327627465,-500.0,0.00041095,120]
[399404209,1766327627551,-500.0,0.00041095,120]
[399404210,1766327627637,-500.0,0.00041095,120]
[399404211,1766327627728,-500.0,0.00041095,120]
[399404212,1766327627820,-500.0,0.00041095,120]
[399404213,1766327627909,-500.0,0.00041095,120]
[399404214,1766327628001,-420.62521565,0.00041095,120]
[399404215,1766327628090,-500.0,0.00041095,120]
[399404216,1766327628180,-500.0,0.00041095,120]
[399404217,1766327628270,-500.0,0.00041095,120]
[399404218,1766327628361,-500.0,0.00041095,120]
[399404219,1766327628451,-500.0,0.00041095,120]
[399404220,1766327628539,-538.33428716,0.00041095,120]
[399404221,1766327628632,-500.0,0.00041095,120]
[399404222,1766327628721,-564.34305304,0.00041095,120]
[399404223,1766327628802,-500.0,0.00041095,120]
[399404224,1766327628883,-500.0,0.00041095,120]
[399404225,1766327629134,-508.78860247,0.00041095,120]
[399404226,1766327629220,-509.75475473,0.00041095,120]
[399404227,1766327629304,-500.0,0.00041095,120]
[399404228,1766327629391,-510.30943532,0.00041095,120]
[399404229,1766327629472,-502.80259697,0.00041095,120]
[399404230,1766327629551,-503.17362805,0.00041095,120]
[399404231,1766327629635,-500.0,0.00041095,120]
[399404232,1766327629723,-500.0,0.00041095,120]
[399404233,1766327629805,-500.0,0.00041095,120]
[399404234,1766327629890,-500.0,0.00041095,120]
[399404235,1766327629975,-500.0,0.00041095,120]
[399404236,1766327630057,-428.23403607,0.00041095,120]
[399404237,1766327630140,-500.0,0.00041095,120]
[399404238,1766327630223,-500.0,0.00041095,120]
[399404239,1766327630308,-500.0,0.00041095,120]
[399404240,1766327630398,-500.0,0.00041095,120]
[399404241,1766327630483,-500.0,0.00041095,120]
[399404242,1766327630565,-500.0,0.00041095,120]
[399404243,1766327630652,-346.19,0.00041095,120]
[399404244,1766327630738,-500.0,0.00041095,120]
[399404245,1766327630831,-500.0,0.00041095,120]
[399404246,1766327630916,-500.0,0.00041095,120]
[399404247,1766327631001,-500.0,0.00041095,120]
[399404248,1766327631087,-500.0,0.00041095,120]
[399404249,1766327631175,-538.41762507,0.00041095,120]
[399404250,1766327631265,-500.0,0.00041095,120]
[399404251,1766327631353,-500.0,0.00041095,120]
[399404252,1766327631444,-500.0,0.00041095,120]
[399404253,1766327631531,-500.0,0.00041095,120]
[399404254,1766327631627,-500.0,0.00041095,120]
[399404255,1766327631723,-500.0,0.00041095,120]
[399404256,1766327631820,-500.0,0.00041095,120]
[399404257,1766327631904,-500.0,0.00041095,120]
[399404258,1766327631997,-500.0,0.00041095,120]
[399404259,1766327632087,-493.95349517,0.00041095,120]
[399404260,1766327632175,-500.0,0.00041095,120]
[399404261,1766327632264,-506.16526904,0.00041095,120]
[399404262,1766327632351,-500.0,0.00041095,120]
[399404263,1766327632438,-500.0,0.00041095,120]
[399404264,1766327632526,-500.0,0.00041095,120]
[399404265,1766327632611,-242.76202508,0.00041095,120]
[399404266,1766327632699,-500.0,0.00041095,120]
[399404267,1766327632784,-500.0,0.00041095,120]
[399404268,1766327632867,-500.0,0.00041095,120]
[399404269,1766327632955,-445.33235294,0.00041095,120]
[399404270,1766327633044,-500.0,0.00041095,120]
[399404271,1766327633142,-500.0,0.00041095,120]
[399404272,1766327633234,-500.0,0.00041095,120]
[399404273,1766327633326,-273.09932475,0.00041095,120]
[399404274,1766327633419,-500.0,0.00041095,120]
[399404275,1766327633509,-500.0,0.00041095,120]
[399404276,1766327633606,-500.0,0.00041095,120]
[399404277,1766327633709,-502.89782576,0.00041095,120]
[399404278,1766327633809,-500.0,0.00041095,120]
[399404279,1766327633897,-500.0,0.00041095,120]
[399404280,1766327633996,-500.0,0.00041095,120]
[399404281,1766327634088,-500.0,0.00041095,120]
[399404282,1766327634178,-500.0,0.00041095,120]
[399404283,1766327634269,-500.0,0.00041095,120]
[399404284,1766327634358,-500.0,0.00041095,120]
[399404285,1766327634445,-500.0,0.00041095,120]
[399404286,1766327634532,-291.68,0.00041095,120]
[399404287,1766327634618,-511.01776925,0.00041095,120]
[399404288,1766327634703,-500.0,0.00041095,120]
[399404289,1766327634792,-182.33559059,0.00041095,120]
[399404290,1766327634880,-500.0,0.00041095,120]
[399404291,1766327634968,-501.2916858,0.00041095,120]
[399404292,1766327635057,-500.0,0.00041095,120]
[399404293,1766327635145,-500.0,0.00041095,120]
[399404294,1766327635235,-500.0,0.00041095,120]
[399404295,1766327635325,-349.39,0.00041095,120]
[399404296,1766327635412,-500.0,0.00041095,120]
[399404297,1766327635501,-500.0,0.00041095,120]
[399404298,1766327635587,-500.0,0.00041095,120]
[399404299,1766327635672,-500.0,0.00041095,120]
[399404300,1766327635759,-500.0,0.00041095,120]
[399404301,1766327635847,-500.0,0.00041095,120]
[399404302,1766327635935,-500.0,0.00041095,120]
[399404303,1766327636028,-500.0,0.00041095,120]
[399404304,1766327636120,-500.0,0.00041095,120]
[399404305,1766327636213,-231.70488099,0.00041095,120]
[399404306,1766327636305,-500.0,0.00041095,120]
[399404307,1766327636393,-500.0,0.00041095,120]
[399404308,1766327636488,-500.0,0.00041095,120]
[399404309,1766327636583,-521.4734095,0.00041095,120]
[399404310,1766327636668,-537.19038199,0.00041095,120]
[399404311,1766327636753,-500.0,0.00041095,120]
[399404312,1766327636840,-500.0,0.00041095,120]
[399404313,1766327636924,-500.0,0.00041095,120]
[399404314,1766327637007,-500.0,0.00041095,120]
[399404315,1766327637094,-500.0,0.00041095,120]
[399404316,1766327637181,-277.57879886,0.00041095,120]
[399404317,1766327637269,-500.0,0.00041095,120]
[399404318,1766327637353,-500.0,0.00041095,120]
[399404319,1766327637617,-500.0,0.00041095,120]
[399404320,1766327637705,-405.88068411,0.00041095,120]
[399404321,1766327637790,-520.83811567,0.00041095,120]
[399404322,1766327637875,-556.98309482,0.00041095,120]
[399404323,1766327637959,-505.56940173,0.00041095,120]
[399404324,1766327638046,-537.8478659,0.00041095,120]
[399404325,1766327638131,-500.0,0.00041095,120]
[399404326,1766327638218,-458.9309347,0.00041095,120]
[399404327,1766327638311,-500.0,0.00041095,120]
[399404328,1766327638397,-500.0,0.00041095,120]
[399404329,1766327638481,-500.0,0.00041095,120]
[399404330,1766327638566,-500.0,0.00041095,120]
[399404331,1766327638650,-352.64846025,0.00041095,120]
[399404332,1766327638730,-513.35663531,0.00041095,120]
[399404333,1766327638811,-500.0,0.00041095,120]
[399404334,1766327638892,-500.0,0.00041095,120]
[399404335,1766327638973,-500.0,0.00041095,120]
[399404336,1766327639056,-359.48195565,0.00041095,120]
[399404337,1766327639141,-500.0,0.00041095,120]
[399404338,1766327639230,-500.0,0.00041095,120]
[399404339,1766327639317,-500.0,0.00041095,120]
[399404340,1766327639402,-307.89310975,0.00041095,120]
[399404341,1766327639484,-500.0,0.00041095,120]
[399404342,1766327639566,-500.0,0.00041095,120]
[399404343,1766327639662,-527.2270906,0.00041095,120]
[399404344,1766327639759,-500.0,0.00041095,120]
[399404345,1766327639853,-500.0,0.00041095,120]
[399404346,1766327639946,-504.68667732,0.00041095,120]
[399404347,1766327640036,-500.0,0.00041095,120]
[399404348,1766327640123,-422.32834705,0.00041095,120]
[399404349,1766327640218,-500.81793823,0.00041095,120]
[399404350,1766327640310,-500.0,0.00041095,120]
[399404351,1766327640400,-500.0,0.00041095,120]
[399404352,1766327640494,-500.0,0.00041095,120]
[399404353,1766327640584,-500.0,0.00041095,120]
[399404354,1766327640674,-512.67,0.00041095,120]
[399404355,1766327640763,-500.0,0.00041095,120]
[399404356,1766327640847,-500.0,0.00041095,120]
[399404357,1766327640934,-500.0,0.00041095,120]
[399404358,1766327641021,-500.0,0.00041095,120]
[399404359,1766327641107,-500.0,0.00041095,120]
[399404360,1766327641199,-500.0,0.00041095,120]
[399404361,1766327641295,-343.83856097,0.00041095,120]
[399404362,1766327641384,-500.0,0.00041095,120]
[399404363,1766327641473,-500.0,0.00041095,120]
[399404364,1766327641560,-500.0,0.00041095,120]
[399404365,1766327641645,-500.0,0.00041095,120]
[399404366,1766327641731,-500.0,0.00041095,120]
[399404367,1766327641820,-500.0,0.00041095,120]
[399404368,1766327641907,-500.0,0.00041095,120]
[399404369,1766327642000,-166.37883571,0.00041095,120]
[399404370,1766327642094,-500.0,0.00041095,120]
[399404371,1766327642191,-500.0,0.00041095,120]
[399404372,1766327642291,-500.0,0.00041095,120]
[399404373,1766327642386,-500.0,0.00041095,120]
[399404374,1766327642479,-500.0,0.00041095,120]
[399404375,1766327642567,-500.0,0.00041095,120]
[399404376,1766327642658,-500.0,0.00041095,120]
[399404377,1766327642752,-500.0,0.00041095,120]
[399404378,1766327642840,-500.0,0.00041095,120]
[399404379,1766327642930,-401.73908973,0.00041095,120]
[399404380,1766327643020,-249.82345846,0.00041095,120]
[399404381,1766327643114,-501.69797398,0.00041095,120]
[399404382,1766327643214,-500.0,0.00041095,120]
[399404383,1766327643313,-500.0,0.00041095,120]
[399404384,1766327643412,-500.0,0.00041095,120]
[399404385,1766327643506,-307.81319803,0.00041095,120]
[399404386,1766327643597,-500.0,0.00041095,120]
[399404387,1766327643693,-500.0,0.00041095,120]
[399404388,1766327643784,-500.0,0.00041095,120]
[399404389,1766327643874,-500.0,0.00041095,120]
[399404390,1766327643963,-500.0,0.00041095,120]
[399404391,1766327644054,-506.52731682,0.00041095,120]
[399404392,1766327644146,-500.0,0.00041095,120]
[399404393,1766327644238,-500.0,0.00041095,120]
[399404394,1766327644335,-500.0,0.00041095,120]
[399404395,1766327644433,-500.0,0.00041095,120]
[399404396,1766327644528,-500.0,0.00041095,120]
[399404397,1766327644616,-500.0,0.00041095,120]
[399404398,1766327644701,-431.62550496,0.00041095,120]
[399404399,1766327644788,-500.0,0.00041095,120]
[399404400,1766327644881,-372.38774215,0.00041095,120]
[399404401,1766327644969,-500.0,0.00041095,120]
[399404402,1766327645059,-500.0,0.00041095,120]
[399404403,1766327645148,-500.0,0.00041095,120]
[399404404,1766327645239,-504.2182381,0.00041095,120]
[399404405,1766327645331,-500.0,0.00041095,120]
[399404406,1766327645419,-500.0,0.00041095,120]
[399404407,1766327645506,-252.50442104,0.00041095,120]
[399404408,1766327645595,-500.0,0.00041095,120]
[399404409,1766327645680,-517.31047169,0.00041095,120]
[399404410,1766327645765,-507.34406981,0.00041095,120]
[399404411,1766327645850,-500.0,0.00041095,120]
[399404412,1766327645936,-500.0,0.00041095,120]
[399404413,1766327646025,-500.0,0.00041095,120]
[399404414,1766327646115,-500.0,0.00041095,120]
[399404415,1766327646432,-500.0,0.00041095,120]
[399404416,1766327646522,-505.80363911,0.00041095,120]
[399404417,1766327646608,-419.42862284,0.00041095,120]
[399404418,1766327646694,-500.0,0.00041095,120]
[399404419,1766327646781,-500.0,0.00041095,120]
[399404420,1766327646868,-500.0,0.00041095,120]
[399404421,1766327646957,-500.0,0.00041095,120]
[399404422,1766327647045,-164.95,0.00041095,120]
[399404423,1766327647136,-500.0,0.00041095,120]
[399404424,1766327647228,-500.0,0.00041095,120]
[399404425,1766327647317,-500.0,0.00041095,120]
[399404426,1766327647406,-528.426325,0.00041095,120]
[399404427,1766327647494,-501.81868161,0.00041095,120]
[399404428,1766327647583,-500.0,0.00041095,120]
[399404429,1766327647682,-500.0,0.00041095,120]
[399404430,1766327647781,-500.0,0.00041095,120]
[399404431,1766327647878,-500.0,0.00041095,120]
[399404432,1766327647971,-500.0,0.00041095,120]
[399404433,1766327648068,-503.63408589,0.00041095,120]
[399404434,1766327648162,-500.0,0.00041095,120]
[399404435,1766327648256,-500.0,0.00041095,120]
[399404436,1766327648351,-500.0,0.00041095,120]
[399404437,1766327648444,-500.0,0.00041095,120]
[399404438,1766327648538,-500.0,0.00041095,120]
[399404439,1766327648627,-500.0,0.00041095,120]
[399404440,1766327648716,-500.0,0.00041095,120]
[399404442,1766327648805,-500.0,0.00041095,120]
[399404443,1766327648897,-500.0,0.00041095,120]
[399404444,1766327648988,-500.0,0.00041095,120]
[399404445,1766327649081,-494.37609922,0.00041095,120]
[399404446,1766327649174,-500.0,0.00041095,120]
[399404447,1766327649263,-500.0,0.00041095,120]
[399404448,1766327649355,-500.0,0.00041095,120]
[399404449,1766327649442,-545.09658361,0.00041095,120]
[399404450,1766327649531,-521.25672297,0.00041095,120]
[399404451,1766327649623,-500.0,0.00041095,120]
[399404452,1766327649713,-500.0,0.00041095,120]
[399404453,1766327649802,-213.0,0.00041095,120]
[399404454,1766327649892,-500.0,0.00041095,120]
[399404455,1766327649980,-523.36592767,0.00041095,120]
[399404456,1766327650071,-500.0,0.00041095,120]
[399404457,1766327650159,-500.0,0.00041095,120]
[399404458,1766327650247,-500.0,0.00041095,120]
[399404459,1766327650336,-509.46716591,0.00041095,120]
[399404460,1766327650424,-500.0,0.00041095,120]
[399404461,1766327650511,-500.0,0.00041095,120]
[399404462,1766327650596,-500.0,0.00041095,120]
[399404463,1766327650681,-319.38966699,0.00041095,120]
[399404464,1766327650764,-500.0,0.00041095,120]
[399404465,1766327650848,-500.0,0.00041095,120]
[399404466,1766327650935,-500.0,0.00041095,120]
[399404467,1766327651026,-500.0,0.00041095,120]
[399404468,1766327651116,-500.0,0.00041095,120]
[399404469,1766327651205,-500.0,0.00041095,120]
[399404470,1766327651294,-500.0,0.00041095,120]
[399404471,1766327651382,-500.0,0.00041095,120]
[399404472,1766327651471,-277.61995446,0.00041095,120]
[399404473,1766327651556,-502.03235975,0.00041095,120]
[399404474,1766327651642,-500.0,0.00041095,120]
[399404475,1766327651727,-565.45505773,0.00041095,120]
[399404476,1766327651814,-500.0,0.00041095,120]
[399404477,1766327651901,-174.34,0.00041095,120]
[399404478,1766327651990,-500.0,0.00041095,120]
[399404479,1766327652086,-500.0,0.00041095,120]
[399404480,1766327652179,-500.0,0.00041095,120]
[399404481,1766327652270,-506.80265536,0.00041095,120]
[399404482,1766327652366,-387.31129825,0.00041095,120]
[399404483,1766327652462,-500.0,0.00041095,120]
[399404484,1766327652548,-500.0,0.00041095,120]
[399404485,1766327652630,-500.0,0.00041095,120]
[399404486,1766327652712,-505.0788613,0.00041095,120]
[399404487,1766327652793,-400.0,0.00041095,120]
[399404488,1766327652878,-500.0,0.00041095,120]
[399404489,1766327652965,-509.96929318,0.00041095,120]
[399404490,1766327653054,-500.0,0.00041095,120]
[399404491,1766327653141,-500.0,0.00041095,120]
[399404492,1766327653229,-500.0,0.00041095,120]
[399404493,1766327653315,-500.0,0.00041095,120]
[399404494,1766327653396,-500.0,0.00041095,120]
[399404495,1766327653480,-500.0,0.00041095,120]
[399404496,1766327653563,-500.0,0.00041095,120]
[399404497,1766327653650,-500.0,0.00041095,120]
[399404498,1766327653736,-500.0,0.00041095,120]
[399404499,1766327653822,-506.9571399,0.00041095,120]
[399404500,1766327653907,-269.52621268,0.00041095,120]
[399404501,1766327653997,-501.69024673,0.00041095,120]
[399404502,1766327654084,-500.0,0.00041095,120]
[399404503,1766327654173,-500.0,0.00041095,120]
[399404504,1766327654260,-500.0,0.00041095,120]
[399404505,1766327654344,-500.0,0.00041095,120]
[399404506,1766327654427,-500.0,0.00041095,120]
[399404507,1766327654509,-495.09,0.00041095,120]
[399404508,1766327654594,-500.0,0.00041095,120]
[399404509,1766327654682,-500.0,0.00041095,120]
[399404510,1766327654768,-492.48545261,0.00041095,120]
[399404511,1766327655015,-500.0,0.00041095,120]
[399404512,1766327655102,-500.0,0.00041095,120]
[399404513,1766327655190,-500.0,0.00041095,120]
[399404514,1766327655280,-500.0,0.00041095,120]
[399404515,1766327655368,-500.0,0.00041095,120]
[399404516,1766327655452,-500.0,0.00041095,120]
[399404517,1766327655533,-504.41,0.00041095,120]
[399404518,1766327655630,-150.0,0.00041096,120]
[399404519,1766327655727,-193.3007582,0.00041096,120]
[399404520,1766327655877,-4994537.79291063,0.000435,120]
[399404521,1766327655971,-500.0,0.00043515,60]
[399404522,1766327656070,-150.22,0.00043573,120]
[399404523,1766327656162,-1303.87813955,0.000436,120]
[399404524,1766327656257,-150.0,0.00043636,120]
[399404525,1766327656353,-150.22,0.00043673,120]
[399404526,1766327656449,-150.0,0.00043678,120]
[399404527,1766327656539,-547.21354113,0.000437,120]
[399404528,1766327656629,-150.0,0.00043707,120]
[399404529,1766327656721,-150.0,0.00043743,120]
[399404530,1766327656814,-150.22,0.00043773,120]
[399404531,1766327656904,-500.0,0.00043789,60]
[399404532,1766327656997,-1193.21082232,0.000438,90]
[399404533,1766327657089,-1000.0,0.000438,120]
[399404534,1766327657179,-1000.0,0.000438,120]
[399404535,1766327657271,-1000.0,0.000438,120]
[399404536,1766327657364,-1000.0,0.000438,120]
[399404537,1766327657454,-1000.0,0.000438,120]
[399404538,1766327657542,-2308.11,0.000438,120]
[399404539,1766327657632,-157.0,0.000438,120]
[399404540,1766327657725,-150.0,0.00043811,120]
[399404541,1766327657813,-500.0,0.00043835,120]
[399404542,1766327657901,-335.0550753,0.00043835,120]
[399404543,1766327657988,-150.22,0.00043873,120]
[399404544,1766327658078,-176.0,0.000439,120]
[399404545,1766327658170,-150.22,0.00043973,120]
[399404546,1766327658261,-1063.27643077,0.00043987,120]
[399404547,1766327658350,-383.88269267,0.00044,120]
[399404548,1766327658437,-584.14993439,0.00044,120]
[399404549,1766327658522,-558.11688428,0.00044,120]
[399404550,1766327658611,-727.21196972,0.00044,120]
[399404551,1766327658697,-4000.0,0.00044,120]
[399404552,1766327658782,-1941.90056646,0.00044,120]
[399404553,1766327658864,-2058.16855386,0.00044,120]
[399404554,1766327658950,-300.0,0.00044,120]
[399404555,1766327659037,-500.0,0.00044063,60]
[399404556,1766327659126,-150.0,0.00044064,120]
[399404557,1766327659215,-150.0,0.00044139,120]
[399404558,1766327659305,-150.0,0.00044244,120]
[399404559,1766327659394,-158.8377136,0.0004425,120]
[399404560,1766327659480,-2224.8,0.000443,120]
[399404561,1766327659566,-150.0,0.0004437,120]
[399404562,1766327659656,-219.18803495,0.00044395,120]
[399404563,1766327659747,-176.0,0.000444,120]
[399404564,1766327659837,-157.0,0.000444,120]
[399404565,1766327659943,-712.23185341,0.000445,120]
[399404566,1766327660035,-500.0,0.00044611,60]
[399404567,1766327660128,-150.0,0.0004468,120]
[399404568,1766327660222,-756.0908649,0.00044755,120]
[399404569,1766327660313,-324.71127563,0.00044885,60]
[399404570,1766327660408,-2607.42596148,0.0004489,120]
[399404571,1766327660506,-151.0,0.00044897,120]
[399404572,1766327660592,-200000.0,0.000449,120]
[399404573,1766327660674,-200000.0,0.000449,120]
[399404574,1766327660767,-1303.87813955,0.000449,120]
[399404575,1766327660855,-157.0,0.000449,120]
[399404576,1766327660939,-20000.0,0.00044985,120]
[399404577,1766327661025,-1000.0,0.00044999,120]
[399404578,1766327661113,-500.0,0.00045,120]
[399404579,1766327661202,-3000.0,0.00045,120]
[399404580,1766327661296,-678.21010691,0.00045,120]
[399404581,1766327661384,-579.5980124,0.00045,120]
[399404582,1766327661474,-1071.11795375,0.00045,120]
[399404583,1766327661564,-453.45373071,0.00045,120]
[399404584,1766327661654,-1008.96197917,0.00045,120]
[399404585,1766327661738,-275.1943185,0.00045,60]
[399404586,1766327661822,-4000.0,0.00045,120]
[399404587,1766327661907,-223.0,0.00045,120]
[399404588,1766327662005,-200.0,0.00045,120]
[399404589,1766327662093,-1020.6820889,0.00045,120]
[399404590,1766327662185,-731.9747962,0.00045,120]
[399404591,1766327662284,-150.0,0.00045,120]
[399404592,1766327662375,-284.43503779,0.00045,120]
[399404593,1766327662464,-2000.0,0.00045,60]
[399404594,1766327662551,-4101.10657743,0.00045,120]
[399404595,1766327662641,-150.0,0.00045,120]
[399404596,1766327662729,-3195.47170747,0.00045,120]
[399404597,1766327662815,-1000.0,0.00045,120]
[399404598,1766327662903,-200.0,0.00045,120]
[399404599,1766327662995,-1603.59679868,0.00045,120]
[399404600,1766327663088,-2000.0,0.00045,60]
[399404601,1766327663183,-781.77,0.00045,120]
[399404602,1766327663279,-448.0,0.00045,120]
[399404603,1766327663700,-9684.09366153,0.00045,120]
[399404604,1766327663800,-2328.85010465,0.00045,120]
[399404605,1766327663894,-234.42,0.00045,120]
[399404606,1766327663986,-938.09,0.00045,120]
[399404607,1766327664082,-484.78,0.00045,120]
[399404608,1766327664179,-162.55,0.00045,120]
[399404609,1766327664277,-4181.0,0.00045,120]
[399404610,1766327664371,-167.05,0.00045,120]
[399404611,1766327664470,-176.0,0.00045,120]
[399404612,1766327664569,-2000.0,0.00045,120]
[399404613,1766327664661,-5043.72,0.00045,120]
[399404615,1766327664753,-2552.57,0.00045,120]
[399404616,1766327664843,-242.04571385,0.00045,120]
[399404617,1766327664933,-500.0,0.00045159,60]
[399404618,1766327665026,-2065.80905044,0.000452,120]
[399404619,1766327665135,-1000.0,0.000452,120]
[399404620,1766327665229,-1000.0,0.000454,120]
[399404621,1766327665319,-157.0,0.000454,120]
[399404622,1766327665409,-1008.2084315,0.000455,120]
[399404623,1766327665500,-176.0,0.000455,120]
[399404624,1766327665592,-151.0,0.00045553,120]
[399404625,1766327665680,-1001100.0,0.00045556,120]
[399404626,1766327665770,-1000.0,0.000456,120]
[399404627,1766327665860,-1610.99907435,0.000457,120]
[399404628,1766327665955,-500.0,0.00045707,60]
[399404629,1766327666054,-1000.0,0.000458,120]
[399404630,1766327666147,-241.13389035,0.0004589,120]
[399404631,1766327666240,-1999.72,0.000459,120]
[399404632,1766327666334,-5000.0,0.000459,120]
[399404633,1766327666427,-19085.27124142,0.00045985,120]
[399404634,1766327666517,-521.09159878,0.00046,120]
[399404635,1766327666606,-324.73149773,0.00046,120]
[399404636,1766327666696,-560.73429362,0.00046,120]
[399404637,1766327666788,-827.18047861,0.00046,90]
[399404638,1766327666874,-4000.0,0.00046,120]
[399404639,1766327666967,-200.0,0.00046,120]
[399404640,1766327667061,-2203.43643507,0.00046,120]